fUSD/lending_fUSD_20250826
["ID","MTS","AMOUNT","RATE_DAILY","PERIOD"]
[381417332,1756188667784,-400.0,0.00016986,2]
[381417333,1756188667793,-1061.87,0.00016986,2]
[381417334,1756188667803,-516.5,0.00016986,2]
[381417335,1756188667813,-400.0,0.00016986,2]
[381417336,1756188667823,-903.27,0.00016986,2]
[381417337,1756188667832,-502.53,0.00016986,2]
[381417338,1756188667842,-486.0,0.00016986,2]
[381417339,1756188667852,-1120.95,0.00016986,2]
[381417340,1756188667862,-780.92,0.00016986,2]
[381417341,1756188667873,-826.18,0.00016986,2]
[381417342,1756188667884,-400.0,0.00016986,2]
[381417343,1756188667894,-400.0,0.00016986,2]
[381417344,1756188667903,-783.13,0.00016986,2]
[381417345,1756188667915,-584.56,0.00016986,2]
[381417346,1756188667925,-626.24,0.00016986,2]
[381417347,1756188667936,-1575.75,0.00016986,2]
[381417348,1756188667946,-802.92,0.00016986,2]
[381417349,1756188667958,-618.53,0.00016986,2]
[381417350,1756188667968,-662.98,0.00016986,2]
[381417351,1756188667979,-728.28,0.00016986,2]
[381417352,1756188667989,-971.04,0.00016986,2]
[381417353,1756188667998,-438.22,0.00016986,2]
[381417354,1756188668008,-400.0,0.00016986,2]
[381417355,1756188668019,-400.0,0.00016986,2]
[381417356,1756188668029,-400.0,0.00016986,2]
[381417357,1756188668039,-871.2,0.00016986,2]
[381417358,1756188668051,-344.48103502,0.00016986,2]
[381417359,1756188668061,-703.81,0.00016986,2]
[381417360,1756188668071,-400.0,0.00016986,2]
[381417361,1756188668082,-482.68,0.00016986,2]
[381417362,1756188668092,-1029.9,0.00016986,2]
[381417363,1756188668102,-675.43,0.00016986,2]
[381417364,1756188668113,-400.0,0.00016986,2]
[381417365,1756188668124,-400.0,0.00016986,2]
[381417366,1756188668134,-400.0,0.00016986,2]
[381417367,1756188668143,-546.77,0.00016986,2]
[381417368,1756188668152,-1074.18,0.00016986,2]
[381417369,1756188668162,-428.2,0.00016986,2]
[381417370,1756188668172,-635.24,0.00016986,2]
[381417371,1756188668182,-1287.85,0.00016986,2]
[381417372,1756188668194,-419.32,0.00016986,2]
[381417373,1756188668206,-602.04,0.00016986,2]
[381417374,1756188668216,-4422.22,0.00016986,2]
[381417375,1756188668226,-553.06,0.00016986,2]
[381417376,1756188668239,-542.81790849,0.00016986,2]
[381417377,1756188668249,-1235.71,0.00016986,2]
[381417378,1756188668259,-746.72,0.00016986,2]
[381417379,1756188668270,-595.58,0.00016986,2]
[381417380,1756188668281,-400.0,0.00016986,2]
[381417381,1756188668291,-400.0,0.00016986,2]
[381417382,1756188668301,-400.0,0.00016986,2]
[381417383,1756188668312,-1447.76,0.00016986,2]
[381417384,1756188668323,-1118.72,0.00016986,2]
[381417385,1756188668333,-654.55,0.00016986,2]
[381417386,1756188668342,-400.0,0.00016986,2]
[381417387,1756188668352,-593.78,0.00016986,2]
[381417388,1756188668362,-673.71,0.00016986,2]
[381417389,1756188668372,-766.2,0.00016986,2]
[381417390,1756188668383,-311.2038153,0.00016986,2]
[381417391,1756188668392,-924.93,0.00016986,2]
[381417392,1756188668402,-400.0,0.00016986,2]
[381417393,1756188668412,-466.17,0.00016986,2]
[381417394,1756188668422,-400.0,0.00016986,2]
[381417395,1756188668431,-640.46,0.00016986,2]
[381417396,1756188668440,-400.0,0.00016986,2]
[381417397,1756188668449,-538.42,0.00016986,2]
[381417398,1756188668460,-785.6,0.00016986,2]
[381417399,1756188668470,-1246.21,0.00016986,2]
[381417400,1756188668481,-400.0,0.00016986,2]
[381417401,1756188668491,-400.0,0.00016986,2]
[381417402,1756188668506,-400.0,0.00016986,2]
[381417403,1756188668516,-400.0,0.00016986,2]
[381417404,1756188668525,-755.38,0.00016986,2]
[381417405,1756188668534,-400.0,0.00016986,2]
[381417406,1756188668543,-1386.44,0.00016986,2]
[381417407,1756188668552,-400.0,0.00016986,2]
[381417408,1756188668562,-602.84,0.00016986,2]
[381417409,1756188668573,-400.0,0.00016986,2]
[381417410,1756188668582,-870.05,0.00016986,2]
[381417411,1756188668593,-402.45,0.00016986,2]
[381417412,1756188668603,-1111.92,0.00016986,2]
[381417413,1756188668612,-1078.03,0.00016986,2]
[381417414,1756188668622,-718.42,0.00016986,2]
[381417415,1756188668631,-817.24,0.00016986,2]
[381417416,1756188668641,-855.41,0.00016986,2]
[381417417,1756188668651,-1410.52,0.00016986,2]
[381417418,1756188668661,-1356.85,0.00016986,2]
[381417419,1756188668673,-546.13,0.00016986,2]
[381417420,1756188668683,-1204.06,0.00016986,2]
[381417421,1756188668694,-626.08,0.00016986,2]
[381417422,1756188668703,-400.0,0.00016986,2]
[381417423,1756188668713,-400.0,0.00016986,2]
[381417424,1756188668723,-400.0,0.00016986,2]
[381417425,1756188668735,-440.23,0.00016986,2]
[381417426,1756188668744,-400.0,0.00016986,2]
[381417427,1756188668753,-400.0,0.00016986,2]
[381417428,1756188668762,-400.0,0.00016986,2]
[381417429,1756188668772,-400.0,0.00016986,2]
[381417430,1756188668783,-400.0,0.00016986,2]
[381417431,1756188668792,-599.76,0.00016986,2]
[381417432,1756188668801,-400.0,0.00016986,2]
[381417433,1756188668810,-5873.62,0.00016986,2]
[381417434,1756188668819,-527.26,0.00016986,2]
[381417435,1756188668828,-400.0,0.00016986,2]
[381417436,1756188668839,-525.25,0.00016986,2]
[381417437,1756188668849,-968.63,0.00016986,2]
[381417438,1756188668859,-505.4,0.00016986,2]
[381417439,1756188668868,-400.0,0.00016986,2]
[381417440,1756188668878,-400.0,0.00016986,2]
[381417441,1756188668887,-734.67,0.00016986,2]
[381417442,1756188668899,-400.0,0.00016986,2]
[381417443,1756188668909,-735.62,0.00016986,2]
[381417444,1756188668919,-437.89,0.00016986,2]
[381417445,1756188668929,-529.15,0.00016986,2]
[381417446,1756188668938,-400.0,0.00016986,2]
[381417447,1756188668949,-599.53,0.00016986,2]
[381417448,1756188668959,-400.0,0.00016986,2]
[381417449,1756188668969,-595.75,0.00016986,2]
[381417450,1756188669323,-645.59,0.00016986,2]
[381417451,1756188669349,-533.13240791,0.00016986,2]
[381417452,1756188669363,-400.0,0.00016986,2]
[381417453,1756188669372,-459.57,0.00016986,2]
[381417454,1756188669382,-412.04,0.00016986,2]
[381417455,1756188669392,-1048.97,0.00016986,2]
[381417456,1756188669401,-400.0,0.00016986,2]
[381417457,1756188669412,-400.0,0.00016986,2]
[381417458,1756188669422,-1154.46,0.00016986,2]
[381417459,1756188669432,-1082.16,0.00016986,2]
[381417460,1756188669442,-439.82,0.00016986,2]
[381417461,1756188669451,-400.0,0.00016986,2]
[381417462,1756188669461,-687.71,0.00016986,2]
[381417463,1756188669471,-913.32,0.00016986,2]
[381417464,1756188669481,-558.41,0.00016986,2]
[381417465,1756188669490,-735.9,0.00016986,2]
[381417466,1756188669500,-509.99,0.00016986,2]
[381417467,1756188669510,-515.76,0.00016986,2]
[381417468,1756188669520,-1018.6,0.00016986,2]
[381417469,1756188669529,-776.55,0.00016986,2]
[381417470,1756188669539,-832.89,0.00016986,2]
[381417471,1756188669550,-554.35,0.00016986,2]
[381417472,1756188669560,-400.0,0.00016986,2]
[381417473,1756188669571,-564.29,0.00016986,2]
[381417474,1756188669580,-1095.92,0.00016986,2]
[381417475,1756188669590,-716.16,0.00016986,2]
[381417476,1756188669600,-605.32,0.00016986,2]
[381417477,1756188669612,-652.21,0.00016986,2]
[381417478,1756188669622,-408.05,0.00016986,2]
[381417479,1756188669631,-400.0,0.00016986,2]
[381417480,1756188669640,-400.0,0.00016986,2]
[381417481,1756188669650,-630.04,0.00016986,2]
[381417482,1756188669660,-3991.74,0.00016986,2]
[381417483,1756188669670,-400.0,0.00016986,2]
[381417484,1756188669679,-609.71,0.00016986,2]
[381417485,1756188669689,-1129.24,0.00016986,2]
[381417486,1756188669698,-400.0,0.00016986,2]
[381417487,1756188669708,-807.09,0.00016986,2]
[381417488,1756188669718,-4040.92,0.00016986,2]
[381417489,1756188669727,-411.4,0.00016986,2]
[381417490,1756188669737,-400.0,0.00016986,2]
[381417491,1756188669748,-735.54,0.00016986,2]
[381417492,1756188669757,-581.99,0.00016986,2]
[381417493,1756188669766,-400.0,0.00016986,2]
[381417494,1756188669776,-400.0,0.00016986,2]
[381417495,1756188669787,-485.26,0.00016986,2]
[381417496,1756188669797,-582.35,0.00016986,2]
[381417497,1756188669806,-400.0,0.00016986,2]
[381417498,1756188669815,-400.0,0.00016986,2]
[381417499,1756188669824,-588.34,0.00016986,2]
[381417500,1756188669834,-664.14,0.00016986,2]
[381417501,1756188669843,-400.0,0.00016986,2]
[381417502,1756188669854,-1315.67,0.00016986,2]
[381417503,1756188669863,-739.91,0.00016986,2]
[381417504,1756188669872,-556.92,0.00016986,2]
[381417505,1756188669881,-650.88,0.00016986,2]
[381417506,1756188669890,-400.0,0.00016986,2]
[381417507,1756188669900,-755.41,0.00016986,2]
[381417508,1756188669909,-1605.23,0.00016986,2]
[381417509,1756188669919,-400.0,0.00016986,2]
[381417510,1756188669929,-400.0,0.00016986,2]
[381417511,1756188669940,-773.11,0.00016986,2]
[381417512,1756188669950,-400.0,0.00016986,2]
[381417513,1756188669959,-558.15,0.00016986,2]
[381417514,1756188669970,-811.52,0.00016986,2]
[381417515,1756188669979,-1662.9,0.00016986,2]
[381417516,1756188669989,-1067.9,0.00016986,2]
[381417517,1756188669998,-749.42,0.00016986,2]
[381417518,1756188670009,-400.0,0.00016986,2]
[381417519,1756188670018,-400.0,0.00016986,2]
[381417520,1756188670027,-400.0,0.00016986,2]
[381417521,1756188670039,-400.0,0.00016986,2]
[381417522,1756188670049,-670.2,0.00016986,2]
[381417523,1756188670060,-443.96,0.00016986,2]
[381417524,1756188670071,-1401.8,0.00016986,2]
[381417525,1756188670081,-400.0,0.00016986,2]
[381417526,1756188670094,-700.61,0.00016986,2]
[381417527,1756188670106,-1387.66,0.00016986,2]
[381417528,1756188670125,-691.88,0.00016986,2]
[381417529,1756188670145,-400.0,0.00016986,2]
[381417530,1756188670154,-715.26,0.00016986,2]
[381417531,1756188670164,-835.47,0.00016986,2]
[381417532,1756188670173,-730.03,0.00016986,2]
[381417533,1756188670182,-1236.14,0.00016986,2]
[381417534,1756188670192,-532.72,0.00016986,2]
[381417535,1756188670202,-400.0,0.00016986,2]
[381417536,1756188670211,-400.0,0.00016986,2]
[381417537,1756188670221,-400.0,0.00016986,2]
[381417538,1756188670230,-636.32,0.00016986,2]
[381417539,1756188670239,-430.14,0.00016986,2]
[381417540,1756188670248,-657.16,0.00016986,2]
[381417541,1756188670257,-477.55,0.00016986,2]
[381417542,1756188670267,-400.0,0.00016986,2]
[381417543,1756188670276,-304.62,0.00016986,2]
[381417544,1756188670285,-400.0,0.00016986,2]
[381417545,1756188670295,-400.0,0.00016986,2]
[381417546,1756188670304,-1138.36,0.00016986,2]
[381417547,1756188670314,-400.0,0.00016986,2]
[381417548,1756188670324,-1120.63,0.00016986,2]
[381417549,1756188670333,-1321.39,0.00016986,2]
[381417550,1756188670343,-531.25,0.00016986,2]
[381417551,1756188670354,-1244.63,0.00016986,2]
[381417552,1756188670363,-400.0,0.00016986,2]
[381417553,1756188670373,-1613.31,0.00016986,2]
[381417554,1756188670383,-151.0,0.00016986,2]
[381417555,1756188670392,-151.0,0.00016986,2]
[381417556,1756188670401,-151.0,0.00016986,2]
[381417557,1756188670411,-151.0,0.00016986,2]
[381417558,1756188670419,-151.0,0.00016986,2]
[381417559,1756188670429,-151.0,0.00016986,2]
[381417560,1756188670438,-151.0,0.00016986,2]
[381417561,1756188670447,-151.0,0.00016986,2]
[381417562,1756188670456,-386.014727,0.00016986,2]
[381417563,1756188670465,-151.0,0.00016986,2]
[381417564,1756188670475,-386.014727,0.00016986,2]
[381417565,1756188670484,-151.0,0.00016986,2]
[381417566,1756188670493,-386.014727,0.00016986,2]
[381417567,1756188670502,-151.0,0.00016986,2]
[381417568,1756188670511,-151.0,0.00016986,2]
[381417569,1756188670520,-386.014727,0.00016986,2]
[381417570,1756188670530,-251.28834,0.00016986,2]
[381417571,1756188670539,-151.0,0.00016986,2]
[381417572,1756188670548,-151.0,0.00016986,2]
[381417573,1756188670558,-151.0,0.00016986,2]
[381417574,1756188670567,-151.0,0.00016986,2]
[381417575,1756188670576,-151.0,0.00016986,2]
[381417576,1756188670585,-1184.782011,0.00016986,2]
[381417577,1756188670595,-1184.782011,0.00016986,2]
[381417578,1756188670607,-151.0,0.00016986,2]
[381417579,1756188670616,-151.0,0.00016986,2]
[381417580,1756188670626,-151.0,0.00016986,2]
[381417581,1756188670635,-151.0,0.00016986,2]
[381417582,1756188670645,-151.0,0.00016986,2]
[381417583,1756188670654,-151.0,0.00016986,2]
[381417584,1756188670663,-151.0,0.00016986,2]
[381417585,1756188670674,-151.0,0.00016986,2]
[381417586,1756188670684,-2104.639047,0.00016986,2]
[381417587,1756188670694,-151.0,0.00016986,2]
[381417588,1756188670707,-1184.782011,0.00016986,2]
[381417589,1756188670716,-2104.639047,0.00016986,2]
[381417590,1756188670726,-2104.639047,0.00016986,2]
[381417591,1756188670735,-1184.782011,0.00016986,2]
[381417592,1756188670745,-151.0,0.00016986,2]
[381417593,1756188670754,-2104.639047,0.00016986,2]
[381417594,1756188670763,-500.0,0.00016996,2]
[381417595,1756188670772,-621.0,0.00017,2]
[381417596,1756188670782,-919.05003421,0.00017007,2]
[381417597,1756188670792,-502.90418228,0.00017021,2]
[381417598,1756188670802,-464.51,0.00017041,2]
[381417599,1756188670813,-731.50777169,0.00017042,2]
[381417600,1756188670824,-500.0,0.00017042,2]
[381417601,1756188670834,-300.0,0.00017048,2]
[381417602,1756188670843,-348.0,0.00017061,2]
[381417603,1756188670854,-168.0,0.00017074,2]
[381417604,1756188670863,-1000.0,0.00017079,2]
[381417605,1756188670873,-500.0,0.00017088,2]
[381417606,1756188670882,-500.0,0.00017135,2]
[381417607,1756188670891,-383.69355637,0.0001716,2]
[381417608,1756188670900,-429.57579263,0.0001716,2]
[381417609,1756188670911,-285.81359626,0.0001716,2]
[381417610,1756188670921,-682.55272481,0.0001716,2]
[381417611,1756188670932,-975.29321228,0.00017175,2]
[381417612,1756188670943,-151.0,0.00017178,2]
[381417613,1756188670952,-151.0,0.00017178,2]
[381417614,1756188670963,-151.0,0.00017178,2]
[381417615,1756188670973,-151.0,0.00017178,2]
[381417616,1756188670982,-151.0,0.00017178,2]
[381417617,1756188670992,-151.0,0.00017178,2]
[381417618,1756188671001,-151.0,0.00017178,2]
[381417619,1756188671011,-151.0,0.00017178,2]
[381417620,1756188671020,-151.0,0.00017178,2]
[381417621,1756188671030,-151.0,0.00017178,2]
[381417622,1756188671039,-151.0,0.00017178,2]
[381417623,1756188671049,-189.689041,0.00017178,2]
[381417624,1756188671058,-189.689041,0.00017178,2]
[381417625,1756188671068,-189.689041,0.00017178,2]
[381417626,1756188671077,-151.0,0.00017178,2]
[381417627,1756188671087,-216.453212,0.00017178,2]
[381417628,1756188671096,-189.689041,0.00017178,2]
[381417629,1756188671108,-216.453212,0.00017178,2]
[381417630,1756188671121,-216.453212,0.00017178,2]
[381417631,1756188671131,-216.453212,0.00017178,2]
[381417632,1756188671140,-151.0,0.00017178,2]
[381417633,1756188671151,-151.0,0.00017178,2]
[381417634,1756188671160,-151.0,0.00017178,2]
[381417635,1756188671170,-251.103413,0.00017178,2]
[381417636,1756188671179,-151.0,0.00017178,2]
[381417637,1756188671189,-408.65,0.00017178,2]
[381417638,1756188671199,-1185.82,0.00017178,2]
[381417639,1756188671210,-1185.82,0.00017178,2]
[381417640,1756188671219,-150.0,0.00017178,2]
[381417641,1756188671229,-173.79,0.00017178,2]
[381417642,1756188671239,-539.77,0.00017178,2]
[381417643,1756188671248,-408.65,0.00017178,2]
[381417644,1756188671257,-539.77,0.00017178,2]
[381417645,1756188671267,-1388.39,0.00017178,2]
[381417646,1756188671276,-150.0,0.00017178,2]
[381417647,1756188671285,-408.65,0.00017178,2]
[381417648,1756188671294,-173.79,0.00017178,2]
[381417649,1756188671304,-539.77,0.00017178,2]
[381417650,1756188671313,-173.79,0.00017178,2]
[381417651,1756188671323,-150.0,0.00017178,2]
[381417652,1756188671333,-408.65,0.00017178,2]
[381417653,1756188671343,-173.79,0.00017178,2]
[381417654,1756188671354,-150.0,0.00017178,2]
[381417655,1756188671365,-539.77,0.00017178,2]
[381417656,1756188671375,-408.65,0.00017178,2]
[381417657,1756188671384,-539.77,0.00017178,2]
[381417658,1756188671394,-150.0,0.00017178,2]
[381417659,1756188671403,-173.79,0.00017178,2]
[381417660,1756188671414,-408.65,0.00017178,2]
[381417661,1756188671423,-173.79,0.00017178,2]
[381417662,1756188671433,-539.77,0.00017178,2]
[381417663,1756188671442,-150.0,0.00017178,2]
[381417664,1756188671451,-408.65,0.00017178,2]
[381417665,1756188671461,-539.77,0.00017178,2]
[381417666,1756188671470,-166.12,0.00017178,2]
[381417667,1756188671480,-150.0,0.00017178,2]
[381417668,1756188671490,-173.79,0.00017178,2]
[381417669,1756188671500,-408.65,0.00017178,2]
[381417670,1756188671510,-539.77,0.00017178,2]
[381417671,1756188671520,-408.65,0.00017178,2]
[381417672,1756188671529,-166.12,0.00017178,2]
[381417673,1756188671538,-173.79,0.00017178,2]
[381417674,1756188671548,-173.79,0.00017178,2]
[381417675,1756188671557,-539.77,0.00017178,2]
[381417676,1756188671567,-165.96,0.00017178,2]
[381417677,1756188671576,-535.59,0.00017178,2]
[381417678,1756188671585,-173.79,0.00017178,2]
[381417679,1756188671595,-173.79,0.00017178,2]
[381417680,1756188671604,-500.0,0.00017181,2]
[381417681,1756188671614,-500.0,0.00017228,2]
[381417682,1756188671624,-433.0,0.00017243,2]
[381417683,1756188671634,-300.0,0.00017259,2]
[381417684,1756188671645,-300.0,0.00017259,2]
[381417685,1756188671655,-300.0,0.00017259,2]
[381417686,1756188671664,-400.0,0.0001726,2]
[381417687,1756188671674,-847.88,0.0001726,2]
[381417688,1756188671685,-400.0,0.0001726,2]
[381417689,1756188671695,-488.85,0.0001726,2]
[381417690,1756188671704,-400.0,0.0001726,2]
[381417691,1756188671714,-400.0,0.0001726,2]
[381417692,1756188671836,-893.94,0.0001726,2]
[381417693,1756188671846,-400.0,0.0001726,2]
[381417694,1756188671857,-683.47,0.0001726,2]
[381417695,1756188671866,-400.0,0.0001726,2]
[381417696,1756188671875,-732.2,0.0001726,2]
[381417697,1756188671884,-400.0,0.0001726,2]
[381417698,1756188671894,-400.0,0.0001726,2]
[381417699,1756188671903,-660.53,0.0001726,2]
[381417700,1756188671913,-400.0,0.0001726,2]
[381417701,1756188671923,-427.05,0.0001726,2]
[381417702,1756188671933,-407.2,0.0001726,2]
[381417703,1756188671942,-554.81,0.0001726,2]
[381417704,1756188671951,-400.0,0.0001726,2]
[381417705,1756188671960,-548.1,0.0001726,2]
[381417706,1756188671970,-400.0,0.0001726,2]
[381417707,1756188671979,-400.0,0.0001726,2]
[381417708,1756188671988,-571.38,0.0001726,2]
[381417709,1756188671997,-890.6,0.0001726,2]
[381417710,1756188672006,-450.95,0.0001726,2]
[381417711,1756188672016,-546.7,0.0001726,2]
[381417712,1756188672025,-507.34,0.0001726,2]
[381417713,1756188672034,-400.0,0.0001726,2]
[381417714,1756188672043,-991.23,0.0001726,2]
[381417715,1756188672053,-400.0,0.0001726,2]
[381417716,1756188672062,-400.0,0.0001726,2]
[381417717,1756188672071,-400.0,0.0001726,2]
[381417718,1756188672081,-586.41,0.0001726,2]
[381417719,1756188672090,-502.81,0.0001726,2]
[381417720,1756188672100,-400.0,0.0001726,2]
[381417721,1756188672110,-400.0,0.0001726,2]
[381417722,1756188672123,-533.65,0.0001726,2]
[381417723,1756188672132,-400.0,0.0001726,2]
[381417724,1756188672142,-400.0,0.0001726,2]
[381417725,1756188672151,-400.0,0.0001726,2]
[381417726,1756188672161,-747.11,0.0001726,2]
[381417727,1756188672170,-400.0,0.0001726,2]
[381417728,1756188672180,-400.0,0.0001726,2]
[381417729,1756188672190,-400.0,0.0001726,2]
[381417730,1756188672200,-949.76,0.0001726,2]
[381417731,1756188672209,-877.0,0.0001726,2]
[381417732,1756188672219,-308.571121,0.0001726,2]
[381417733,1756188672228,-763.8,0.0001726,2]
[381417734,1756188672238,-400.0,0.0001726,2]
[381417735,1756188672247,-626.61,0.0001726,2]
[381417736,1756188672257,-400.0,0.0001726,2]
[381417737,1756188672266,-657.61,0.0001726,2]
[381417738,1756188672275,-400.0,0.0001726,2]
[381417739,1756188672284,-715.24,0.0001726,2]
[381417740,1756188672293,-1391.82,0.0001726,2]
[381417741,1756188672302,-810.97,0.0001726,2]
[381417742,1756188672312,-685.41,0.0001726,2]
[381417743,1756188672321,-752.49,0.0001726,2]
[381417744,1756188672331,-400.0,0.0001726,2]
[381417745,1756188672340,-636.02,0.0001726,2]
[381417746,1756188672350,-654.24,0.0001726,2]
[381417747,1756188672361,-969.6,0.0001726,2]
[381417748,1756188672370,-400.0,0.0001726,2]
[381417749,1756188672380,-771.95,0.0001726,2]
[381417750,1756188672390,-400.0,0.0001726,2]
[381417751,1756188672399,-329.138385,0.0001726,2]
[381417752,1756188672408,-678.29,0.0001726,2]
[381417753,1756188672417,-400.0,0.0001726,2]
[381417754,1756188672428,-400.0,0.0001726,2]
[381417755,1756188672437,-400.0,0.0001726,2]
[381417756,1756188672446,-782.88,0.0001726,2]
[381417757,1756188672456,-400.0,0.0001726,2]
[381417758,1756188672465,-400.0,0.0001726,2]
[381417759,1756188672475,-155.4449548,0.0001726,2]
[381417760,1756188672484,-958.85,0.0001726,2]
[381417761,1756188672493,-686.49,0.0001726,2]
[381417762,1756188672502,-663.92,0.0001726,2]
[381417763,1756188672511,-1409.901953,0.0001726,2]
[381417764,1756188672521,-796.82,0.0001726,2]
[381417765,1756188672531,-400.0,0.0001726,2]
[381417766,1756188672540,-590.76,0.0001726,2]
[381417767,1756188672550,-908.49,0.0001726,2]
[381417768,1756188672559,-400.0,0.0001726,2]
[381417769,1756188672568,-348.09993185,0.0001726,2]
[381417770,1756188672578,-400.0,0.0001726,2]
[381417771,1756188672587,-425.83,0.0001726,2]
[381417772,1756188672596,-919.98,0.0001726,2]
[381417773,1756188672607,-600.55,0.0001726,2]
[381417774,1756188672617,-400.0,0.0001726,2]
[381417775,1756188672626,-633.39,0.0001726,2]
[381417776,1756188672635,-400.0,0.0001726,2]
[381417777,1756188672644,-400.0,0.0001726,2]
[381417778,1756188672653,-400.0,0.0001726,2]
[381417779,1756188672662,-410.99,0.0001726,2]
[381417780,1756188672671,-623.31,0.0001726,2]
[381417781,1756188672680,-400.0,0.0001726,2]
[381417782,1756188672690,-400.0,0.0001726,2]
[381417783,1756188672699,-400.0,0.0001726,2]
[381417784,1756188672708,-400.0,0.0001726,2]
[381417785,1756188672717,-400.0,0.0001726,2]
[381417786,1756188672726,-400.0,0.0001726,2]
[381417787,1756188672735,-400.0,0.0001726,2]
[381417788,1756188672744,-400.0,0.0001726,2]
[381417789,1756188672753,-605.53,0.0001726,2]
[381417790,1756188672762,-400.0,0.0001726,2]
[381417791,1756188672772,-400.0,0.0001726,2]
[381417792,1756188672780,-516.93,0.0001726,2]
[381417793,1756188672789,-400.0,0.0001726,2]
[381417794,1756188672798,-400.0,0.0001726,2]
[381417795,1756188672807,-400.0,0.0001726,2]
[381417796,1756188672816,-659.59,0.0001726,2]
[381417797,1756188672825,-400.0,0.0001726,2]
[381417798,1756188672836,-400.0,0.0001726,2]
[381417799,1756188672845,-400.0,0.0001726,2]
[381417800,1756188672855,-400.0,0.0001726,2]
[381417801,1756188672863,-515.66,0.0001726,2]
[381417802,1756188672872,-400.0,0.0001726,2]
[381417803,1756188672883,-400.0,0.0001726,2]
[381417804,1756188672893,-400.0,0.0001726,2]
[381417805,1756188672906,-400.0,0.0001726,2]
[381417806,1756188672915,-848.23,0.0001726,2]
[381417807,1756188672923,-485.4,0.0001726,2]
[381417808,1756188672934,-794.04,0.0001726,2]
[381417809,1756188672943,-400.0,0.0001726,2]
[381417810,1756188672952,-400.0,0.0001726,2]
[381417811,1756188672961,-400.0,0.0001726,2]
[381417812,1756188672970,-566.81,0.0001726,2]
[381417813,1756188672979,-407.58,0.0001726,2]
[381417814,1756188672988,-432.92,0.0001726,2]
[381417815,1756188672998,-400.0,0.0001726,2]
[381417816,1756188673007,-1265.09,0.0001726,2]
[381417817,1756188673015,-400.0,0.0001726,2]
[381417818,1756188673025,-527.89,0.0001726,2]
[381417819,1756188673035,-400.0,0.0001726,2]
[381417820,1756188673044,-412.51,0.0001726,2]
[381417821,1756188673053,-499.0,0.0001726,2]
[381417822,1756188673062,-638.2,0.0001726,2]
[381417823,1756188673071,-402.17782984,0.0001726,2]
[381417824,1756188673081,-400.0,0.0001726,2]
[381417825,1756188673090,-338.0,0.0001726,2]
[381417826,1756188673099,-402.0,0.0001726,2]
[381417827,1756188673110,-400.0,0.0001726,2]
[381417828,1756188673123,-400.0,0.0001726,2]
[381417829,1756188673132,-400.0,0.0001726,2]
[381417830,1756188673141,-154.95,0.0001726,2]
[381417831,1756188673152,-400.0,0.0001726,2]